[Event "*** Titled Tuesday Blitz"]
[Site "Chess.com"]
[Date "2020.03.03"]
[Round "2"]
[White "VerdeNotte"]
[Black "Sordis"]
[Result "1-0"]
[WhiteElo "2777"]
[BlackElo "2348"]
[TimeControl "180+1"]
[EndTime "13:20:02 PST"]
[Termination "VerdeNotte won by resignation"]

1. e4 {[%clk 0:03:00.9]} 1... c6 {[%clk 0:02:58.4]} 2. c4 {[%clk 0:02:59.8]}
2... d5 {[%clk 0:02:57.6]} 3. exd5 {[%clk 0:02:59.6]} 3... cxd5 {[%clk
0:02:58.5]} 4. d4 {[%clk 0:02:59.3]} 4... Nf6 {[%clk 0:02:58.4]} 5. Nc3 {[%clk
0:02:59.1]} 5... Nc6 {[%clk 0:02:57.5]} 6. Bg5 {[%clk 0:02:58.2]} 6... e6 {[%clk
0:02:54.7]} 7. Nf3 {[%clk 0:02:57.9]} 7... Be7 {[%clk 0:02:54.5]} 8. c5 {[%clk
0:02:51.3]} 8... O-O {[%clk 0:02:53.7]} 9. Bd3 {[%clk 0:02:50.6]} 9... b6 {[%clk
0:02:46.8]} 10. Bb5 {[%clk 0:02:42.6]} 10... Bd7 {[%clk 0:02:36.4]} 11. Bxc6
{[%clk 0:02:42]} 11... Bxc6 {[%clk 0:02:36.5]} 12. b4 {[%clk 0:02:38.5]} 12...
a5 {[%clk 0:02:24.1]} 13. b5 {[%clk 0:02:38.5]} 13... Be8 {[%clk 0:02:21.9]} 14.
Bxf6 {[%clk 0:02:37.5]} 14... Bxf6 {[%clk 0:02:19.2]} 15. c6 {[%clk 0:02:37.3]}
15... Qc7 {[%clk 0:02:15.6]} 16. O-O {[%clk 0:02:33.7]} 16... Be7 {[%clk
0:02:15.6]} 17. a4 {[%clk 0:02:30.9]} 17... f6 {[%clk 0:02:14.4]} 18. Re1 {[%clk
0:02:30.2]} 18... Bf7 {[%clk 0:02:14.4]} 19. Re3 {[%clk 0:02:28]} 19... Rfe8
{[%clk 0:02:13.1]} 20. Ra2 {[%clk 0:02:24.5]} 20... Bd6 {[%clk 0:02:12.5]} 21.
g3 {[%clk 0:02:22.3]} 21... Rad8 {[%clk 0:02:12.3]} 22. Rae2 {[%clk 0:02:21.5]}
22... Bb4 {[%clk 0:02:04.8]} 23. Na2 {[%clk 0:02:12.7]} 23... Bd6 {[%clk
0:02:04.5]} 24. Nc1 {[%clk 0:02:11.9]} 24... h6 {[%clk 0:01:51.9]} 25. Nd3
{[%clk 0:02:11.6]} 25... Re7 {[%clk 0:01:39.3]} 26. Qe1 {[%clk 0:02:11.2]} 26...
Rde8 {[%clk 0:01:38.6]} 27. Nh4 {[%clk 0:02:04.1]} 27... g5 {[%clk 0:01:31.6]}
28. Nf3 {[%clk 0:02:01.9]} 28... Kg7 {[%clk 0:01:30.1]} 29. Qc3 {[%clk
0:01:58.3]} 29... Bh5 {[%clk 0:01:25.3]} 30. Re1 {[%clk 0:01:57.1]} 30... Bg6
{[%clk 0:01:23.1]} 31. Nd2 {[%clk 0:01:47.6]} 31... Bf7 {[%clk 0:01:17.5]} 32.
Rf1 {[%clk 0:01:43.9]} 32... Bg6 {[%clk 0:01:12.6]} 33. f4 {[%clk 0:01:43.7]}
33... Bf5 {[%clk 0:00:59.1]} 34. Qa1 {[%clk 0:01:26.6]} 34... g4 {[%clk
0:00:58.4]} 35. Rfe1 {[%clk 0:01:23.5]} 35... h5 {[%clk 0:00:58.1]} 36. Nf2
{[%clk 0:01:17.4]} 36... Bb4 {[%clk 0:00:56.6]} 37. R1e2 {[%clk 0:01:15.8]}
37... Qc8 {[%clk 0:00:51.7]} 38. Nd3 {[%clk 0:01:10.6]} 38... Bd6 {[%clk
0:00:50.7]} 39. Nf1 {[%clk 0:01:10.4]} 39... Be4 {[%clk 0:00:48.6]} 40. Rxe4
{[%clk 0:01:08.5]} 40... dxe4 {[%clk 0:00:48.6]} 41. Rxe4 {[%clk 0:01:09.4]}
41... Rf7 {[%clk 0:00:42]} 42. Qe1 {[%clk 0:01:05.1]} 42... Ree7 {[%clk
0:00:41.2]} 43. Nd2 {[%clk 0:01:04.3]} 43... Qc7 {[%clk 0:00:41.5]} 44. Nc4
{[%clk 0:01:04.4]} 44... Rf8 {[%clk 0:00:38.8]} 45. Rxe6 {[%clk 0:01:04.3]}
45... Rxe6 {[%clk 0:00:38.8]} 46. Qxe6 {[%clk 0:01:05.2]} 46... Be7 {[%clk
0:00:24.4]} 47. Nxb6 {[%clk 0:01:01.6]} 47... Qxb6 {[%clk 0:00:19.7]} 48. Qxe7+
{[%clk 0:01:01.6]} 48... Rf7 {[%clk 0:00:20.2]} 49. Qc5 {[%clk 0:01:01.7]} 49...
Qd8 {[%clk 0:00:18.6]} 50. b6 {[%clk 0:00:58.8]} 50... Qe8 {[%clk 0:00:18.9]}
51. Ne5 {[%clk 0:00:57.6]} 51... fxe5 {[%clk 0:00:18.8]} 52. Qxe5+ {[%clk
0:00:57.5]} 52... Qxe5 {[%clk 0:00:17.6]} 53. fxe5 {[%clk 0:00:57.7]} 53... Rf3
{[%clk 0:00:16.7]} 54. c7 {[%clk 0:00:56.1]} 54... Rc3 {[%clk 0:00:16.6]} 55. b7
{[%clk 0:00:55.5]} 55... Rc1+ {[%clk 0:00:16.7]} 56. Kf2 {[%clk 0:00:55.3]}
56... Rc2+ {[%clk 0:00:17.6]} 57. Ke3 {[%clk 0:00:55.3]} 57... Rc1 {[%clk
0:00:18.5]} 1-0

[Event "*** Titled Tuesday Blitz"]
[Site "Chess.com"]
[Date "2020.03.03"]
[Round "2"]
[White "MateusViageiro"]
[Black "Keithonsky"]
[Result "0-1"]
[WhiteElo "2185"]
[BlackElo "2438"]
[TimeControl "180+1"]
[EndTime "13:20:02 PST"]
[Termination "Keithonsky won by resignation"]

1. e4 {[%clk 0:03:00.9]} 1... e6 {[%clk 0:02:59.9]} 2. Qe2 {[%clk 0:02:59.6]}
2... Be7 {[%clk 0:02:58.9]} 3. f4 {[%clk 0:02:58.9]} 3... d5 {[%clk 0:02:59.4]}
4. d3 {[%clk 0:02:57.6]} 4... Nf6 {[%clk 0:02:57.4]} 5. Nf3 {[%clk 0:02:57.5]}
5... b6 {[%clk 0:02:57.8]} 6. e5 {[%clk 0:02:56.6]} 6... Nfd7 {[%clk 0:02:57.8]}
7. g3 {[%clk 0:02:56.1]} 7... c5 {[%clk 0:02:58.2]} 8. Bg2 {[%clk 0:02:56.1]}
8... Nc6 {[%clk 0:02:58.7]} 9. O-O {[%clk 0:02:55.9]} 9... O-O {[%clk
0:02:58.9]} 10. Be3 {[%clk 0:02:55.7]} 10... f6 {[%clk 0:02:58.6]} 11. exf6
{[%clk 0:02:54.5]} 11... Bxf6 {[%clk 0:02:59.5]} 12. c3 {[%clk 0:02:54.3]} 12...
Re8 {[%clk 0:02:57.1]} 13. d4 {[%clk 0:02:51.9]} 13... a5 {[%clk 0:02:56.1]} 14.
Qf2 {[%clk 0:02:51]} 14... a4 {[%clk 0:02:52]} 15. Ne5 {[%clk 0:02:47.4]} 15...
Bb7 {[%clk 0:02:48.1]} 16. Na3 {[%clk 0:02:41.7]} 16... Rf8 {[%clk 0:02:44.9]}
17. Qd2 {[%clk 0:02:38.2]} 17... Ndxe5 {[%clk 0:02:42]} 18. fxe5 {[%clk
0:02:32.7]} 18... Be7 {[%clk 0:02:42.8]} 19. Bh3 {[%clk 0:02:28.7]} 19... Qd7
{[%clk 0:02:41.6]} 20. Nc2 {[%clk 0:02:22.6]} 20... Na5 {[%clk 0:02:40.7]} 21.
Na3 {[%clk 0:02:19.8]} 21... cxd4 {[%clk 0:02:38.7]} 22. Bxd4 {[%clk 0:02:18.4]}
22... Bxa3 {[%clk 0:02:36.7]} 23. bxa3 {[%clk 0:02:17.4]} 23... Nc4 {[%clk
0:02:37.2]} 24. Qe2 {[%clk 0:02:15.3]} 24... Ba6 {[%clk 0:02:36.2]} 25. Qg4
{[%clk 0:02:09.5]} 25... Rxf1+ {[%clk 0:02:31.9]} 26. Rxf1 {[%clk 0:02:06.2]}
26... Re8 {[%clk 0:02:31.8]} 27. Rf6 {[%clk 0:01:58.4]} 27... Bc8 {[%clk
0:02:26.8]} 28. Rf2 {[%clk 0:01:53.2]} 28... Rf8 {[%clk 0:02:21.6]} 29. Rxf8+
{[%clk 0:01:47.7]} 29... Kxf8 {[%clk 0:02:22.4]} 30. Qh5 {[%clk 0:01:46]} 30...
Kg8 {[%clk 0:02:16.5]} 31. Bf1 {[%clk 0:01:43.6]} 31... Nxa3 {[%clk 0:02:08]}
32. Bxb6 {[%clk 0:01:41.5]} 32... Qf7 {[%clk 0:02:04]} 33. Qxf7+ {[%clk
0:01:37.3]} 33... Kxf7 {[%clk 0:02:04.6]} 34. Bd3 {[%clk 0:01:34.4]} 34... Bd7
{[%clk 0:02:03.3]} 35. Bc5 {[%clk 0:01:31.6]} 35... Nb5 {[%clk 0:01:58.9]} 36.
c4 {[%clk 0:01:28.1]} 36... Nc3 {[%clk 0:01:49.7]} 37. a3 {[%clk 0:01:21.3]}
37... dxc4 {[%clk 0:01:44.1]} 38. Bxc4 {[%clk 0:01:20.3]} 38... Bb5 {[%clk
0:01:45]} 39. Bb4 {[%clk 0:01:13.6]} 39... Bxc4 {[%clk 0:01:41.2]} 40. Bxc3
{[%clk 0:01:13]} 40... Kg6 {[%clk 0:01:42.1]} 41. Kf2 {[%clk 0:01:10.8]} 41...
Kf5 {[%clk 0:01:43]} 42. Ke3 {[%clk 0:01:08.8]} 42... g5 {[%clk 0:01:43.2]} 43.
Kd4 {[%clk 0:01:03.9]} 43... Bd5 {[%clk 0:01:41.5]} 44. Kc5 {[%clk 0:01:02.7]}
44... Kg4 {[%clk 0:01:40.7]} 45. Bd2 {[%clk 0:00:56.7]} 45... h6 {[%clk
0:01:40]} 46. Kb4 {[%clk 0:00:51.2]} 46... Bb3 {[%clk 0:01:37.5]} 47. Kc5 {[%clk
0:00:50.4]} 47... Kh3 {[%clk 0:01:37.4]} 48. Kd6 {[%clk 0:00:45.3]} 48... Kxh2
{[%clk 0:01:36.9]} 49. Be1 {[%clk 0:00:44.4]} 49... h5 {[%clk 0:01:36.7]} 50.
Ke7 {[%clk 0:00:44.2]} 50... Kh3 {[%clk 0:01:35.3]} 51. Kf6 {[%clk 0:00:44]}
51... Kg4 {[%clk 0:01:33.9]} 52. Kg6 {[%clk 0:00:39.7]} 52... h4 {[%clk
0:01:33.7]} 53. gxh4 {[%clk 0:00:39]} 53... gxh4 {[%clk 0:01:34.6]} 54. Bxh4
{[%clk 0:00:21]} 54... Kxh4 {[%clk 0:01:34.3]} 0-1

[Event "*** Titled Tuesday Blitz"]
[Site "Chess.com"]
[Date "2020.03.03"]
[Round "2"]
[White "2165149677570"]
[Black "ChessicallyInclined"]
[Result "0-1"]
[WhiteElo "2236"]
[BlackElo "2487"]
[TimeControl "180+1"]
[EndTime "13:20:06 PST"]
[Termination "ChessicallyInclined won by resignation"]

1. e4 {[%clk 0:03:00.9]} 1... d6 {[%clk 0:03:00.1]} 2. d4 {[%clk 0:02:57.7]}
2... Nf6 {[%clk 0:03:00.7]} 3. Nc3 {[%clk 0:02:53.3]} 3... g6 {[%clk 0:03:01.1]}
4. f3 {[%clk 0:02:51.8]} 4... c6 {[%clk 0:03:00.1]} 5. Be3 {[%clk 0:02:48.6]}
5... Nbd7 {[%clk 0:03:00.2]} 6. Qd2 {[%clk 0:02:48.5]} 6... b5 {[%clk
0:02:59.6]} 7. g4 {[%clk 0:02:46]} 7... Bg7 {[%clk 0:02:56.1]} 8. h4 {[%clk
0:02:45.9]} 8... h5 {[%clk 0:02:55.4]} 9. g5 {[%clk 0:02:44.1]} 9... Nh7 {[%clk
0:02:55.5]} 10. f4 {[%clk 0:02:26.6]} 10... Nb6 {[%clk 0:02:53.2]} 11. b3 {[%clk
0:02:23.3]} 11... d5 {[%clk 0:02:39.8]} 12. e5 {[%clk 0:02:20.1]} 12... Bf5
{[%clk 0:02:36.5]} 13. Bh3 {[%clk 0:02:10.5]} 13... e6 {[%clk 0:02:36.4]} 14.
Bxf5 {[%clk 0:02:02.6]} 14... exf5 {[%clk 0:02:37.3]} 15. Nf3 {[%clk 0:01:52.6]}
15... Nf8 {[%clk 0:02:37.3]} 16. a4 {[%clk 0:01:43.1]} 16... b4 {[%clk
0:02:35.6]} 17. Ne2 {[%clk 0:01:27.5]} 17... a5 {[%clk 0:02:33]} 18. c3 {[%clk
0:01:25.9]} 18... bxc3 {[%clk 0:02:32.8]} 19. Qxc3 {[%clk 0:01:26.8]} 19... Qd7
{[%clk 0:02:26.7]} 20. Kf2 {[%clk 0:01:07]} 20... Ne6 {[%clk 0:02:22.3]} 21.
Rhc1 {[%clk 0:01:07.1]} 21... Nd8 {[%clk 0:02:21.5]} 22. Nd2 {[%clk 0:01:03.5]}
22... Bf8 {[%clk 0:02:21]} 23. Rc2 {[%clk 0:00:52.6]} 23... Bb4 {[%clk 0:02:21]}
24. Qb2 {[%clk 0:00:53.1]} 24... Ne6 {[%clk 0:02:19.9]} 25. Nc1 {[%clk
0:00:53.1]} 25... c5 {[%clk 0:02:09.4]} 26. Nd3 {[%clk 0:00:44]} 26... Rc8
{[%clk 0:01:02.2]} 27. Rac1 {[%clk 0:00:21.7]} 27... c4 {[%clk 0:00:58.9]} 28.
Nxb4 {[%clk 0:00:15.9]} 28... axb4 {[%clk 0:00:58.9]} 29. bxc4 {[%clk
0:00:16.4]} 29... dxc4 {[%clk 0:00:55]} 30. Nxc4 {[%clk 0:00:16.8]} 30... Nxc4
{[%clk 0:00:39.2]} 31. Rxc4 {[%clk 0:00:17.7]} 31... Rxc4 {[%clk 0:00:39.3]} 32.
Rxc4 {[%clk 0:00:17.9]} 32... O-O {[%clk 0:00:39.7]} 33. Qxb4 {[%clk 0:00:13.9]}
33... Qd5 {[%clk 0:00:37.1]} 34. Qb5 {[%clk 0:00:14.1]} 34... Qh1 {[%clk
0:00:34.4]} 35. d5 {[%clk 0:00:09.4]} 35... Qxh4+ {[%clk 0:00:32.8]} 36. Ke2
{[%clk 0:00:09.5]} 36... Qg4+ {[%clk 0:00:26.9]} 37. Kd3 {[%clk 0:00:09.5]}
37... Rd8 {[%clk 0:00:23.8]} 38. Qb7 {[%clk 0:00:09.7]} 38... Qd1+ {[%clk
0:00:23]} 39. Bd2 {[%clk 0:00:08.8]} 39... Qf3+ {[%clk 0:00:21.8]} 40. Be3
{[%clk 0:00:08.9]} 40... Rxd5+ {[%clk 0:00:20.9]} 41. Kc2 {[%clk 0:00:06.5]}
41... Rd2+ {[%clk 0:00:20.4]} 42. Kxd2 {[%clk 0:00:05]} 42... Qxb7 {[%clk
0:00:20.4]} 0-1

[Event "*** Titled Tuesday Blitz"]
[Site "Chess.com"]
[Date "2020.03.03"]
[Round "2"]
[White "NuidisVulko"]
[Black "almaguerjm"]
[Result "1/2-1/2"]
[WhiteElo "2487"]
[BlackElo "2320"]
[TimeControl "180+1"]
[EndTime "13:20:07 PST"]
[Termination "Game drawn by repetition"]

1. e4 {[%clk 0:03:00.7]} 1... Nf6 {[%clk 0:02:57.2]} 2. e5 {[%clk 0:02:59.9]}
2... Nd5 {[%clk 0:02:56.5]} 3. c4 {[%clk 0:02:59.9]} 3... Nb6 {[%clk 0:02:56.7]}
4. d4 {[%clk 0:03:00.2]} 4... d6 {[%clk 0:02:57.1]} 5. exd6 {[%clk 0:02:58.4]}
5... exd6 {[%clk 0:02:58]} 6. Nc3 {[%clk 0:02:54.8]} 6... Be7 {[%clk 0:02:58.4]}
7. Bd3 {[%clk 0:02:53.3]} 7... O-O {[%clk 0:02:58.6]} 8. Nge2 {[%clk 0:02:53.4]}
8... Nc6 {[%clk 0:02:58.4]} 9. O-O {[%clk 0:02:52.2]} 9... Bg4 {[%clk 0:02:47]}
10. f3 {[%clk 0:02:45.9]} 10... Bh5 {[%clk 0:02:47.1]} 11. Be3 {[%clk
0:02:42.3]} 11... Bg6 {[%clk 0:02:46.1]} 12. b3 {[%clk 0:02:36.4]} 12... Bg5
{[%clk 0:02:45.3]} 13. Bf2 {[%clk 0:02:30.8]} 13... Re8 {[%clk 0:02:42.1]} 14.
Bxg6 {[%clk 0:02:14.3]} 14... hxg6 {[%clk 0:02:39.3]} 15. d5 {[%clk 0:02:14.4]}
15... Ne7 {[%clk 0:02:36.4]} 16. a4 {[%clk 0:02:12.5]} 16... Nf5 {[%clk
0:02:34.6]} 17. Qd3 {[%clk 0:02:09.7]} 17... Be3 {[%clk 0:02:30.2]} 18. Ne4
{[%clk 0:02:08.7]} 18... Bxf2+ {[%clk 0:02:28.4]} 19. Rxf2 {[%clk 0:02:09.4]}
19... Nd7 {[%clk 0:02:28.3]} 20. Qc2 {[%clk 0:02:03]} 20... Nc5 {[%clk
0:02:26.8]} 21. b4 {[%clk 0:01:53.6]} 21... Ne3 {[%clk 0:01:58.7]} 22. Qc3
{[%clk 0:01:42.7]} 22... Nxe4 {[%clk 0:01:47.5]} 23. fxe4 {[%clk 0:01:42.9]}
23... Ng4 {[%clk 0:01:45.3]} 24. Rf4 {[%clk 0:01:41]} 24... Qg5 {[%clk 0:01:40]}
25. Raf1 {[%clk 0:01:39.9]} 25... Nf6 {[%clk 0:01:38.5]} 26. Ng3 {[%clk
0:01:37.1]} 26... Re5 {[%clk 0:01:36.5]} 27. h4 {[%clk 0:01:32]} 27... Qh6
{[%clk 0:01:33.1]} 28. c5 {[%clk 0:01:31.2]} 28... Rae8 {[%clk 0:01:30.2]} 29.
Qd4 {[%clk 0:01:30.7]} 29... b6 {[%clk 0:01:27.1]} 30. cxd6 {[%clk 0:01:29.2]}
30... cxd6 {[%clk 0:01:28]} 31. a5 {[%clk 0:01:29.1]} 31... g5 {[%clk
0:01:23.7]} 32. hxg5 {[%clk 0:01:23]} 32... Qxg5 {[%clk 0:01:23.3]} 33. R1f3
{[%clk 0:01:20.8]} 33... bxa5 {[%clk 0:01:11.6]} 34. bxa5 {[%clk 0:01:20]} 34...
Rc8 {[%clk 0:01:02.7]} 35. Nf5 {[%clk 0:01:10.9]} 35... Rc1+ {[%clk 0:00:56.8]}
36. Kh2 {[%clk 0:01:10.8]} 36... Ng4+ {[%clk 0:00:52.1]} 37. Rxg4 {[%clk
0:00:46.5]} 37... Qxg4 {[%clk 0:00:47.7]} 38. Qxa7 {[%clk 0:00:45.6]} 38... Rxf5
{[%clk 0:00:26.1]} 39. exf5 {[%clk 0:00:35.2]} 39... Qh4+ {[%clk 0:00:25.3]} 40.
Rh3 {[%clk 0:00:35.7]} 40... Qf4+ {[%clk 0:00:25.3]} 41. Rg3 {[%clk 0:00:24.9]}
41... Qh6+ {[%clk 0:00:24.4]} 42. Rh3 {[%clk 0:00:24.8]} 42... Qf4+ {[%clk
0:00:24.7]} 43. Rg3 {[%clk 0:00:25.4]} 43... Qh4+ {[%clk 0:00:24.6]} 44. Rh3
{[%clk 0:00:25.8]} 44... Qf4+ {[%clk 0:00:24.8]} 1/2-1/2

[Event "*** Titled Tuesday Blitz"]
[Site "Chess.com"]
[Date "2020.03.03"]
[Round "2"]
[White "Witik"]
[Black "Martins-BR"]
[Result "1-0"]
[WhiteElo "2640"]
[BlackElo "2338"]
[TimeControl "180+1"]
[EndTime "13:20:12 PST"]
[Termination "Witik won on time"]

1. c3 {[%clk 0:03:00.9]} 1... f5 {[%clk 0:02:55]} 2. h3 {[%clk 0:02:58.9]} 2...
Nf6 {[%clk 0:02:54]} 3. g4 {[%clk 0:02:56.5]} 3... d5 {[%clk 0:02:52.3]} 4. g5
{[%clk 0:02:51.5]} 4... Ne4 {[%clk 0:02:50.2]} 5. d3 {[%clk 0:02:50.2]} 5... Nd6
{[%clk 0:02:49.4]} 6. Nf3 {[%clk 0:02:47.5]} 6... Nf7 {[%clk 0:02:41.6]} 7. d4
{[%clk 0:02:40]} 7... g6 {[%clk 0:02:35.2]} 8. h4 {[%clk 0:02:37.5]} 8... Bg7
{[%clk 0:02:33.1]} 9. h5 {[%clk 0:02:37.2]} 9... Nc6 {[%clk 0:02:26.2]} 10. h6
{[%clk 0:02:36.3]} 10... Bf8 {[%clk 0:02:25.7]} 11. Bf4 {[%clk 0:02:35.7]} 11...
e6 {[%clk 0:02:20.2]} 12. e3 {[%clk 0:02:30.8]} 12... Bd6 {[%clk 0:02:19.4]} 13.
Nbd2 {[%clk 0:01:51.9]} 13... O-O {[%clk 0:02:17.6]} 14. Bb5 {[%clk 0:01:46.1]}
14... Bd7 {[%clk 0:02:15.8]} 15. Nb3 {[%clk 0:01:41.4]} 15... a6 {[%clk
0:02:04.5]} 16. Be2 {[%clk 0:01:25.2]} 16... b6 {[%clk 0:01:57.9]} 17. Nc1
{[%clk 0:01:24.1]} 17... Qe7 {[%clk 0:01:50.2]} 18. Nd3 {[%clk 0:01:23.3]} 18...
Rfd8 {[%clk 0:01:45.4]} 19. Nde5 {[%clk 0:01:16.4]} 19... Bxe5 {[%clk 0:01:39]}
20. dxe5 {[%clk 0:01:14.2]} 20... Na7 {[%clk 0:01:32]} 21. O-O {[%clk
0:01:01.4]} 21... c5 {[%clk 0:01:29.5]} 22. Kh2 {[%clk 0:00:52]} 22... Bc6
{[%clk 0:01:20.7]} 23. b4 {[%clk 0:00:40.5]} 23... Nb5 {[%clk 0:01:07.5]} 24.
Qb3 {[%clk 0:00:29.4]} 24... d4 {[%clk 0:00:54.2]} 25. cxd4 {[%clk 0:00:23.4]}
25... Bd5 {[%clk 0:00:46.3]} 26. Qb2 {[%clk 0:00:20.4]} 26... cxd4 {[%clk
0:00:34.5]} 27. Bxb5 {[%clk 0:00:17.7]} 27... Bxf3 {[%clk 0:00:24.8]} 28. Bc4
{[%clk 0:00:17.5]} 28... b5 {[%clk 0:00:17.7]} 29. Bb3 {[%clk 0:00:15.8]} 29...
d3 {[%clk 0:00:17.9]} 30. Qd2 {[%clk 0:00:12.4]} 30... Re8 {[%clk 0:00:14.6]}
31. Rg1 {[%clk 0:00:12.1]} 31... Rad8 {[%clk 0:00:13]} 32. Rg3 {[%clk 0:00:12]}
32... Ba8 {[%clk 0:00:10.8]} 33. Rd1 {[%clk 0:00:10.9]} 33... Qb7 {[%clk
0:00:09.9]} 34. f3 {[%clk 0:00:10.9]} 34... Qc7 {[%clk 0:00:08.9]} 35. Qb2
{[%clk 0:00:09.6]} 35... d2 {[%clk 0:00:06.3]} 36. Rxd2 {[%clk 0:00:09.7]} 36...
Rxd2+ {[%clk 0:00:05.5]} 37. Qxd2 {[%clk 0:00:10.6]} 37... Nxe5 {[%clk
0:00:05.1]} 38. Qd4 {[%clk 0:00:10.2]} 38... Nxf3+ {[%clk 0:00:02.1]} 39. Rxf3
{[%clk 0:00:10.4]} 39... Qb7 {[%clk 0:00:01.2]} 40. e4 {[%clk 0:00:10.2]} 1-0

[Event "*** Titled Tuesday Blitz"]
[Site "Chess.com"]
[Date "2020.03.03"]
[Round "2"]
[White "mbojan"]
[Black "ChessMavenYeti"]
[Result "1-0"]
[WhiteElo "2686"]
[BlackElo "2227"]
[TimeControl "180+1"]
[EndTime "13:20:13 PST"]
[Termination "mbojan won by checkmate"]

1. e4 {[%clk 0:03:00.9]} 1... e6 {[%clk 0:02:59.8]} 2. d4 {[%clk 0:03:00.7]}
2... d5 {[%clk 0:03:00.3]} 3. Nc3 {[%clk 0:03:01.3]} 3... Bb4 {[%clk 0:03:00.1]}
4. e5 {[%clk 0:03:01.7]} 4... c5 {[%clk 0:02:59]} 5. Bd2 {[%clk 0:03:02.2]} 5...
Nh6 {[%clk 0:02:57.5]} 6. a3 {[%clk 0:03:01.4]} 6... Bxc3 {[%clk 0:02:56.7]} 7.
Bxc3 {[%clk 0:03:02.3]} 7... O-O {[%clk 0:02:55.7]} 8. Nf3 {[%clk 0:03:01.5]}
8... Nc6 {[%clk 0:02:53.9]} 9. dxc5 {[%clk 0:02:59.1]} 9... Qe7 {[%clk
0:02:50.2]} 10. b4 {[%clk 0:02:56.1]} 10... b6 {[%clk 0:02:50.3]} 11. cxb6
{[%clk 0:02:48]} 11... axb6 {[%clk 0:02:50]} 12. Bd3 {[%clk 0:02:47.3]} 12... d4
{[%clk 0:02:29.4]} 13. Bxd4 {[%clk 0:02:26.3]} 13... Nxd4 {[%clk 0:02:28]} 14.
Nxd4 {[%clk 0:02:27.2]} 14... Rxa3 {[%clk 0:02:26.8]} 15. Nc6 {[%clk 0:02:05.6]}
15... Qc7 {[%clk 0:01:50.6]} 16. Rxa3 {[%clk 0:02:04.6]} 16... Qxc6 {[%clk
0:01:50.9]} 17. O-O {[%clk 0:02:05.2]} 17... Bb7 {[%clk 0:01:50.7]} 18. f3
{[%clk 0:02:05.8]} 18... Nf5 {[%clk 0:01:44.1]} 19. Be4 {[%clk 0:01:54.4]} 19...
Qc7 {[%clk 0:01:42.4]} 20. Bxf5 {[%clk 0:01:35.8]} 20... exf5 {[%clk 0:01:41.9]}
21. Re3 {[%clk 0:01:33]} 21... f4 {[%clk 0:01:39]} 22. Ree1 {[%clk 0:01:20.7]}
22... Rd8 {[%clk 0:01:38.5]} 23. Qe2 {[%clk 0:01:20]} 23... Bd5 {[%clk
0:01:34.7]} 24. Rd1 {[%clk 0:01:19.7]} 24... Be6 {[%clk 0:01:12.8]} 25. Rxd8+
{[%clk 0:01:20.6]} 25... Qxd8 {[%clk 0:01:12.9]} 26. Rd1 {[%clk 0:01:18.9]}
26... Qc7 {[%clk 0:01:13]} 27. Qe4 {[%clk 0:01:10.2]} 27... g5 {[%clk
0:01:08.8]} 28. h3 {[%clk 0:01:07.6]} 28... Kg7 {[%clk 0:01:07]} 29. Kh2 {[%clk
0:01:07.3]} 29... Qc3 {[%clk 0:01:04]} 30. Rd6 {[%clk 0:00:54.4]} 30... b5
{[%clk 0:00:58.9]} 31. Rd1 {[%clk 0:00:34.6]} 31... h6 {[%clk 0:00:52.6]} 32.
Rd8 {[%clk 0:00:32.1]} 32... Qc7 {[%clk 0:00:45.9]} 33. Rd2 {[%clk 0:00:24.9]}
33... Qc3 {[%clk 0:00:44.9]} 34. Qd4 {[%clk 0:00:24.9]} 34... Qa3 {[%clk
0:00:40.5]} 35. c3 {[%clk 0:00:25.1]} 35... Qc1 {[%clk 0:00:39.9]} 36. Rd1
{[%clk 0:00:25]} 36... Qb2 {[%clk 0:00:34.4]} 37. Qd2 {[%clk 0:00:21.8]} 37...
Qb3 {[%clk 0:00:32.7]} 38. Re1 {[%clk 0:00:21.8]} 38... Qc4 {[%clk 0:00:32.1]}
39. Re4 {[%clk 0:00:20.7]} 39... Qc6 {[%clk 0:00:31.7]} 40. Rd4 {[%clk
0:00:20.7]} 40... Bf5 {[%clk 0:00:30.7]} 41. Rd6 {[%clk 0:00:20.4]} 41... Qc4
{[%clk 0:00:30]} 42. Qd4 {[%clk 0:00:20.8]} 42... Qf1 {[%clk 0:00:28.4]} 43. e6+
{[%clk 0:00:20.6]} 43... Kf8 {[%clk 0:00:28.6]} 44. Rd8+ {[%clk 0:00:19.6]}
44... Ke7 {[%clk 0:00:27.7]} 45. Qd6+ {[%clk 0:00:20.5]} 45... Kf6 {[%clk
0:00:27.7]} 46. e7+ {[%clk 0:00:21.2]} 46... Be6 {[%clk 0:00:27.2]} 47. e8=N+
{[%clk 0:00:20.8]} 47... Kg6 {[%clk 0:00:26.5]} 48. Qe5 {[%clk 0:00:19.2]} 48...
Qf2 {[%clk 0:00:24.5]} 49. Qf6+ {[%clk 0:00:19.5]} 49... Kh5 {[%clk 0:00:23.1]}
50. Ng7+ {[%clk 0:00:19.5]} 50... Kh4 {[%clk 0:00:23.5]} 51. Qxh6# {[%clk
0:00:20.4]} 1-0